Cogmind - Beta 14 --- EXPLORER MODE // 2025.05.02 @ 00:01:27 Player: Niltras Result: Escaped! Performance ------------- Evolutions (9) 4500 Regions Visited (28) 5600 Robots Destroyed (398) 1990 Value Destroyed (19329) 19329 Prototype IDs (3) 60 Alien Tech Used (0) 0 Bonus (17345) 17345 TOTAL SCORE: 48824 Bonus ------- High Alert Combat Kills 2414 Follower Combat Kills 4009 Entered Garrisons 2200 Used RIF Installer 6500 Win 3000 Friendly Fire -778 Cogmind --------- Core Integrity 1474/1600 Matter 300/300 Energy 333/350 System Corruption 5% Temperature Cool (8) Movement Treading (153) Location To Epsilon Eridani Parts ------- > --- POWER (2) -------- Quantum Reactor > --- PROPULSION (5) --- Armored Medium Treads Biometal Heavy Treads Biometal Heavy Treads > --- UTILITY (16) ----- High-capacity Storage Unit Advanced Terrain Scanner Advanced Terrain Scan Processor Advanced Targeting Computer Advanced Target Analyzer Armor Integrity Analyzer Relay Coupler [NC] (43) Relay Coupler [C] (2) Relay Coupler [Cutter] (42) Relay Coupler [Hunter] (5) Relay Coupler [Heavy] (11) Relay Coupler [Proto] (14) > --- WEAPON (3) ------- Improved Remote Datajack > --- INVENTORY (20) --- Matter Compressor (250) Relay Coupler [NC] (47) Relay Coupler [C] (68) Relay Coupler [C] (54) Relay Coupler [C] (58) Relay Coupler [C] (74) Relay Coupler [Specialist] (38) Relay Coupler [Heavy] (20) Relay Coupler [Proto] (14) Remote Datajack Peak State ------------ > --- POWER ------------ F-cell Engine Quantum Reactor > --- PROPULSION ------- Armored Medium Treads Biometal Heavy Treads Advanced Heavy Siege Treads > --- UTILITY ---------- High-capacity Storage Unit Advanced Terrain Scanner Advanced Targeting Computer Advanced Target Analyzer Armor Integrity Analyzer Improved Kinecellerator Improved Medium Armor Plating Improved Medium Armor Plating Relay Coupler [NC] Relay Coupler [C] Relay Coupler [Cutter] Relay Coupler [Sentry] Relay Coupler [Hunter] Relay Coupler [Heavy] > --- WEAPON ----------- Hypervelocity Gauss Cannon Heavy Gauss Cannon Improved Remote Datajack > --- INVENTORY -------- Biometal Heavy Treads Matter Compressor Improved Medium Armor Plating Relay Coupler [NC] Relay Coupler [C] Relay Coupler [C] Relay Coupler [C] Relay Coupler [C] Relay Coupler [C] Relay Coupler [Specialist] Relay Coupler [Heavy] Relay Coupler [Proto] Relay Coupler [Proto] Enhanced Quantum Rifle Remote Datajack [Rating: 148] Favorites ----------- Power F-cell Engine Engine F-cell Engine Power Core Light Nuclear Core Reactor Particle Reactor Propulsion Armored Treads Treads Armored Treads Hover Unit Combat Airjet Utility High-capacity Storage Unit Device Improved Kinecellerator Storage High-capacity Storage Unit Processor Advanced Targeting Computer Hackware Relay Coupler [NC] Protection Improved Medium Armor Plating Weapon Gauss Cannon Energy Gun Dispersion Rifle Ballistic Gun Railgun Ballistic Cannon Gauss Cannon Launcher Rocket Launcher Special Weapon Improved Remote Datajack Impact Weapon Great Maul Piercing Weapon Force Lance Build | -11 -10 -10 -9 -9 -8 -8 -8 -8 -7 -7 -7 -7 -6 -6 -6 -6 -5 -5 -4 -4 -4 -4 -3 -3 -2 -2 -2 -1 ------- Run | Yrd Mat Min Mat Min Mat Gar Mat Gar Fac Gar Fac Gar Fac Gar Fac Gar Fac Gar Fac Gar Fac Gar Res Gar Res Gar Res Acc Slots Evolved 19 | . 1 . 2 . 2 . . . 2 . . . 2 . . . 2 . 2 . . . 2 . 2 . . 2 Power 1 | . . . . . . . . . . . . . . . . . . . . . . . 1 . . . . . Propulsion 3 | . 1 . 1 . . . . . . . . . 1 . . . . . . . . . . . . . . . Utility 14 | . . . 1 . 2 . . . 2 . . . 1 . . . 1 . 2 . . . 1 . 2 . . 2 Weapon 1 | . . . . . . . . . . . . . . . . . 1 . . . . . . . . . . . Parts Attached 242 | 7 9 4 15 10 19 11 6 4 2 14 6 12 13 14 3 16 13 20 6 7 5 8 3 4 1 3 . 7 Power 12 | 1 1 . 1 1 3 . . . . . . 1 1 1 . . . 1 . . . . 1 . . . . . Engine 6 | 1 . . . . 3 . . . . . . 1 . . . . . 1 . . . . . . . . . . Core 3 | . 1 . 1 1 . . . . . . . . . . . . . . . . . . . . . . . . Reactor 3 | . . . . . . . . . . . . . 1 1 . . . . . . . . 1 . . . . . Propulsion 69 | 2 3 . 6 7 8 3 3 . . 3 3 2 4 2 3 1 7 5 4 2 . . . . . . . 1 Treads 68 | 2 3 . 6 6 8 3 3 . . 3 3 2 4 2 3 1 7 5 4 2 . . . . . . . 1 Leg . | . . . . . . . . . . . . . . . . . . . . . . . . . . . . . Wheel . | . . . . . . . . . . . . . . . . . . . . . . . . . . . . . Hover 1 | . . . . 1 . . . . . . . . . . . . . . . . . . . . . . . . Flight . | . . . . . . . . . . . . . . . . . . . . . . . . . . . . . Utility 99 | 2 1 . 5 . 6 3 3 . 2 8 3 5 5 5 . 6 4 9 1 4 5 8 2 4 . 3 . 5 Device 22 | . . . 1 . . 1 . . 1 4 . 1 2 2 . 1 . 3 . 2 1 1 1 . . . . 1 Storage 6 | 1 1 . 1 . . . . . . . . . . . . . 2 . . . . 1 . . . . . . Processor 9 | 1 . . . . 1 . 2 . . 1 . . . . . . 1 . . . . . . 1 . 1 . 1 Hackware 25 | . . . . . . . . . 1 . 1 1 . 2 . 3 . 2 . 1 2 5 . 3 . 2 . 2 Protection 37 | . . . 3 . 5 2 1 . . 3 2 3 3 1 . 2 1 4 1 1 2 1 1 . . . . 1 Artifact . | . . . . . . . . . . . . . . . . . . . . . . . . . . . . . Weapon 62 | 2 4 4 3 2 2 5 . 4 . 3 . 4 3 6 . 9 2 5 1 1 . . . . 1 . . 1 Energy Gun 5 | 1 . . . . . . . . . . . 1 . 1 . 1 . . . . . . . . . . . 1 Energy Cannon . | . . . . . . . . . . . . . . . . . . . . . . . . . . . . . Ballistic Gun 4 | 1 . . . . . . . . . . . 1 . . . . . 2 . . . . . . . . . . Ballistic Cannon 35 | . 4 3 3 1 2 3 . 2 . 3 . 1 3 2 . 4 . 2 1 . . . . . 1 . . . Launcher 3 | . . 1 . 1 . . . . . . . . . . . . . 1 . . . . . . . . . . Special Weapon 10 | . . . . . . . . . . . . . . 3 . 4 2 . . 1 . . . . . . . . Impact Weapon 4 | . . . . . . 2 . 2 . . . . . . . . . . . . . . . . . . . . Slashing Weapon . | . . . . . . . . . . . . . . . . . . . . . . . . . . . . . Piercing Weapon 1 | . . . . . . . . . . . . 1 . . . . . . . . . . . . . . . . Special Melee Weapon . | . . . . . . . . . . . . . . . . . . . . . . . . . . . . . Unidentified Prototypes 1 | . . . . . . . . . . . . . . . . . . 1 . . . . . . . . . . Parts Lost 38 | . . . . 2 . 1 . . . 4 . 3 . 2 . 3 . 11 . . . . . . 1 1 . 10 Power 5 | . . . . 1 . . . . . . . 1 . 1 . . . 1 . . . . . . . . . 1 Propulsion 5 | . . . . . . . . . . . . . . . . 1 . 3 . . . . . . . . . 1 Utility 17 | . . . . . . 1 . . . 2 . 2 . . . 2 . 4 . . . . . . . 1 . 5 Weapon 11 | . . . . 1 . . . . . 2 . . . 1 . . . 3 . . . . . . 1 . . 3 Highest Loss Streak 8 | . . . . 1 . 1 . . . 2 . 1 . 1 . 1 . 4 . . . . . . 1 1 . 8 To Critical Strikes 2 | . . . . . . . . . . . . . . . . . . 1 . . . . . . . 1 . . Average Slot Usage (%) 91 | . 99 99 99 99 87 87 100 100 93 99 99 90 88 85 93 93 97 96 83 88 84 88 85 86 78 80 83 73 Engine 3 | . 2 . . . 7 8 8 8 7 7 7 6 . . . . . 2 5 5 5 5 4 4 4 4 4 1 Core 1 | . 9 12 10 10 . . . . . . . . . . . . . . . . . . . . . . . . Reactor 1 | . . . . . . . . . . . . . 5 6 6 6 5 2 . . . . 4 4 4 4 4 3 Treads 27 | . 36 37 40 40 33 32 33 33 28 28 28 28 31 31 31 30 26 26 25 19 15 15 13 13 12 12 12 11 Device 4 | . . . . . . . . . 1 7 1 . 11 6 6 6 5 7 5 8 10 10 9 9 8 5 4 3 Storage 6 | . 12 12 10 10 8 8 8 8 7 7 7 7 6 6 6 6 4 5 5 5 5 5 4 4 4 4 4 3 Processor 13 | . 12 12 10 10 8 8 15 16 14 14 21 19 12 12 12 12 14 16 15 15 15 15 13 13 12 12 12 12 Hackware 6 | . . . . . . . . . 7 7 7 3 . 2 6 6 11 8 10 11 9 15 13 13 12 15 20 22 Protection 10 | . . . 9 10 12 11 16 16 14 13 11 12 9 12 12 11 11 10 8 10 9 7 8 9 8 8 8 4 Ballistic Cannon 11 | . 21 24 19 19 16 15 16 15 14 13 14 9 2 4 . 5 5 8 10 10 10 10 9 9 7 8 8 4 Special Weapon 1 | . . . . . . . . . . . . . . 1 6 . 5 2 . 4 5 5 4 4 4 4 4 3 Peak Build Rating 148 | 7 11 12 19 22 36 38 44 44 51 57 59 62 75 75 72 80 88 97 98 124 119 129 135 142 134 140 138 148 Average Rating 69 | 4 9 10 15 18 30 35 43 42 47 52 56 55 68 69 71 74 81 89 89 109 117 122 131 134 133 135 138 134 On Entrance 69 | . 7 11 11 19 18 35 38 43 43 51 57 57 51 73 71 72 72 88 84 92 117 118 121 132 134 133 138 138 Naked Turns . | . . . . . . . . . . . . . . . . . . . . . . . . . . . . . Heaviest Build 119 | 17 31 32 57 57 77 77 77 77 81 81 76 83 97 102 91 98 97 106 92 99 99 99 119 119 119 119 117 118 Greatest Support 182 | 40 60 60 83 83 83 83 83 82 82 82 90 92 128 128 136 136 146 146 142 182 182 182 182 182 182 182 182 182 Greatest Overweight (x) 1 | . . . . . 1 1 . . . . . . . . . . . . . . . . . . . . . . Average Overweight (x) . | . . . . . . . . . . . . . . . . . . . . . . . . . . . . . Largest Inventory Capacity 20 | 10 15 15 20 20 20 20 20 20 20 20 20 20 20 20 20 20 20 20 20 20 20 20 20 20 20 20 20 20 Average Capacity 19 | 8 11 15 19 20 20 20 20 20 20 20 20 20 20 20 20 20 19 20 20 20 20 20 20 20 20 20 20 20 Most Carried 20 | . 8 11 20 20 20 19 20 19 17 18 19 20 19 19 15 15 18 20 20 20 19 20 17 20 17 19 18 18 Average Carried 16 | . 5 9 17 18 18 18 19 18 17 16 18 18 16 16 14 14 15 16 19 18 18 18 15 17 16 16 18 14 Final Capacity 20 | 10 15 15 20 20 20 20 20 20 20 20 20 20 20 20 20 20 20 20 20 20 20 20 20 20 20 20 20 20 Final Carried 20 | . 8 11 20 18 19 19 18 18 17 16 18 19 17 14 14 15 17 19 19 19 18 18 15 17 15 18 18 10 Class Distribution -------------------- 58% | Hacker-Mutant 31% | Botlord-Gunner 7% | Bothacker-Mutant 3% | Botlord-Mutant Dominant Class ---------------- Hacker-Mutant | -10/Materials Hacker-Mutant | -10/Mines Hacker-Mutant | -9/Materials Hacker-Mutant | -9/Mines Hacker-Mutant | -8/Materials Hacker-Mutant | -8/Garrison Hacker-Mutant | -8/Materials Hacker-Mutant | -8/Garrison Hacker-Mutant | -7/Factory Hacker-Mutant | -7/Garrison Hacker-Mutant | -7/Factory Hacker-Mutant | -7/Garrison Hacker-Mutant | -6/Factory Hacker-Mutant | -6/Garrison Bothacker-Mutant | -6/Factory Bothacker-Mutant | -6/Garrison Botlord-Gunner | -5/Factory Botlord-Gunner | -5/Garrison Hacker-Mutant | -4/Factory Botlord-Gunner | -4/Garrison Botlord-Gunner | -4/Factory Botlord-Gunner | -4/Garrison Botlord-Gunner | -3/Research Botlord-Gunner | -3/Garrison Botlord-Gunner | -2/Research Botlord-Gunner | -2/Garrison Botlord-Gunner | -2/Research Botlord-Gunner | -1/Access Resources | -11 -10 -10 -9 -9 -8 -8 -8 -8 -7 -7 -7 -7 -6 -6 -6 -6 -5 -5 -4 -4 -4 -4 -3 -3 -2 -2 -2 -1 ----------- Run | Yrd Mat Min Mat Min Mat Gar Mat Gar Fac Gar Fac Gar Fac Gar Fac Gar Fac Gar Fac Gar Fac Gar Res Gar Res Gar Res Acc Matter Collected 13720 | 270 309 108 791 424 800 742 453 358 . 1062 164 914 477 967 35 714 282 1390 68 959 311 818 . 486 38 272 . 508 Remotely . | . . . . . . . . . . . . . . . . . . . . . . . . . . . . . Salvage Created 12664 | . 415 96 1079 262 866 654 430 335 . 1309 81 555 421 842 175 1060 345 1474 . 767 290 424 . 51 . 239 . 494 Parts 631 | . 30 15 81 17 59 40 29 14 . 40 5 34 21 34 3 44 13 66 . 27 9 18 . 5 . 11 . 16 Haulers Intercepted 5 | . 1 . 2 . 1 . . . . 1 . . . . . . . . . . . . . . . . . . Recyclers Shooed 1 | . . . . . 1 . . . . . . . . . . . . . . . . . . . . . . . Parts Field Recycled . | . . . . . . . . . . . . . . . . . . . . . . . . . . . . . Retrieved Matter . | . . . . . . . . . . . . . . . . . . . . . . . . . . . . . Parts Self-Destructed . | . . . . . . . . . . . . . . . . . . . . . . . . . . . . . Prevented . | . . . . . . . . . . . . . . . . . . . . . . . . . . . . . Kills | -11 -10 -10 -9 -9 -8 -8 -8 -8 -7 -7 -7 -7 -6 -6 -6 -6 -5 -5 -4 -4 -4 -4 -3 -3 -2 -2 -2 -1 ------- Run | Yrd Mat Min Mat Min Mat Gar Mat Gar Fac Gar Fac Gar Fac Gar Fac Gar Fac Gar Fac Gar Fac Gar Res Gar Res Gar Res Acc Combat Hostiles Destroyed 370 | . 10 6 30 26 23 28 13 14 . 35 4 27 8 26 3 29 7 33 . 15 6 16 . 2 . 5 . 4 Melee 2 | . . . . . . . . . . . . . . . . . . . . . . . . . . . . 2 Guns 37 | . . . . . . . . . . . . . 5 1 3 12 3 13 . . . . . . . . . . Cannons 320 | . 10 6 30 16 23 28 13 14 . 35 4 26 3 25 . 17 4 20 . 15 6 16 . 2 . 5 . 2 AOE 10 | . . . . 10 . . . . . . . . . . . . . . . . . . . . . . . . Classes Destroyed 20 | . 6 1 3 2 2 2 . . . 1 . 1 . . . . . 2 . . . . . . . . . . Worker 5 | . . . 1 1 1 . . . . . . . 1 . . . . . . . 1 . . . . . . . Builder 5 | . 1 . . 1 2 . 1 . . . . . . . . . . . . . . . . . . . . . Tunneler 2 | . . 1 . 1 . . . . . . . . . . . . . . . . . . . . . . . . Hauler 5 | . 1 . 2 . 1 . . . . 1 . . . . . . . . . . . . . . . . . . Recycler 8 | . 2 . 3 . 2 . . . . . . . . . . . . . . . . . . . . . . 1 Operator 5 | . . . 1 . 1 . 2 . . . . . 1 . . . . . . . . . . . . . . . Watcher 13 | . 2 . 3 . 5 . 2 . . . . . . . . . . . . . . . . . . . . 1 Swarmer 82 | . 4 4 7 . 7 6 2 3 . . . 12 . 5 . 9 . 4 . 2 4 10 . 2 . 1 . . Cutter 5 | . . . . . . 2 . . . 2 . . . . . . . 1 . . . . . . . . . . Grunt 148 | . 6 2 13 6 9 15 6 6 . 18 2 9 3 14 3 16 2 7 . 5 2 1 . . . . . 3 Brawler 8 | . . . . . 1 . 1 . . 1 . 1 . 2 . . . . . 2 . . . . . . . . Duelist 7 | . . . . . . . . . . 5 . . . 2 . . . . . . . . . . . . . . Sentry 53 | . . . 10 . 5 4 3 2 . 8 1 1 3 . . . 3 6 . 3 1 2 . . . 1 . . Demolisher 3 | . . . . 2 . . . . . . . . . . . . . . . . . 1 . . . . . . Specialist 3 | . . . . . . . . . . . . . . . . . . 3 . . . . . . . . . . Hunter 11 | . . . . . 1 . 1 1 . . 1 . . . . . . 5 . 1 . . . . . . . 1 Programmer 30 | . . . . . . 1 . 2 . 1 . 3 2 3 . 3 2 5 . 1 . 2 . . . 3 . 2 Heavy 1 | . . . . . . . . . . . . . . . . . . 1 . . . . . . . . . . Behemoth 4 | . . . . . . . . . . . . 1 . . . 1 . 1 . 1 . . . . . . . . Assembled 18 | . . . . 18 . . . . . . . . . . . . . . . . . . . . . . . . Best Kill Streak 16 | . 3 2 4 16 5 5 4 4 . 5 2 6 2 9 3 4 4 6 . 3 3 6 . 1 . 3 . 2 Combat Bots Only 15 | . 2 2 3 15 5 5 4 4 . 5 2 6 2 9 3 4 4 6 . 3 2 6 . 1 . 3 . 2 Max Kills in Single Turn 5 | . 1 1 1 5 3 1 1 1 . 1 1 2 1 1 1 2 1 1 . 1 2 2 . 1 . 1 . 2 Gunslinging . | . . . . . . . . . . . . . . . . . . . . . . . . . . . . . Exploded 5 | . . . . 5 . . . . . . . . . . . . . . . . . . . . . . . . Melee 1 | . . . . . . . . . . . . . . . . . . . . . . . . . . . . 1 Uniques/NPCs Destroyed . | . . . . . . . . . . . . . . . . . . . . . . . . . . . . . Combat | -11 -10 -10 -9 -9 -8 -8 -8 -8 -7 -7 -7 -7 -6 -6 -6 -6 -5 -5 -4 -4 -4 -4 -3 -3 -2 -2 -2 -1 -------- Run | Yrd Mat Min Mat Min Mat Gar Mat Gar Fac Gar Fac Gar Fac Gar Fac Gar Fac Gar Fac Gar Fac Gar Res Gar Res Gar Res Acc Hostile Shots Fired 2181 | . 42 19 98 104 86 94 40 59 . 365 44 139 71 122 6 117 31 366 . 60 18 56 . 16 5 24 . 199 Missed 645 | . 6 5 29 33 15 22 12 16 . 140 14 42 23 31 2 41 5 89 . 21 7 18 . 8 3 8 . 55 Damage Taken 16031 | . 221 82 569 676 473 637 207 419 . 1412 351 1132 336 1216 46 888 356 3394 . 586 168 391 . 171 45 180 . 2075 Core 1236 | . 29 9 50 64 36 21 8 11 . 105 78 26 16 231 . 82 39 207 . 25 14 24 . 26 . 9 . 126 Absorbed by Shields 198 | . . . . . . . . . . . . . . . . . . . . . . 78 . 7 . 113 . . Ignored by Resistances 9772 | . 143 56 347 414 306 399 130 255 . 937 210 687 218 615 28 528 206 2050 . 341 102 279 . 106 27 174 . 1214 Regen/Repaired (Parts) 729 | . . . 227 . . . . . . . . . . . . . 502 . . . . . . . . . . . Core Remaining (%) 84 | 100 . 84 . 71 . . . 86 . . . 70 . . . 61 . 75 . . . 94 . 98 . . 99 92 Volleys Fired 1075 | . 28 12 77 41 53 56 30 28 . 79 18 76 23 79 9 75 18 120 . 60 18 65 . 29 5 25 . 51 Largest 2 | . 2 2 2 2 2 2 2 2 . 2 2 2 2 1 1 2 2 2 . 2 2 2 . 2 1 2 . 2 Hottest 153 | . 70 70 74 74 96 96 96 96 . 96 96 96 123 88 88 153 153 153 . 122 122 122 . 122 61 122 . 126 Shots Fired 1862 | . 56 21 154 73 106 110 60 56 . 151 36 98 42 79 9 133 36 240 . 109 30 107 . 44 5 37 . 70 Gun 246 | . 4 . . . . . . . . . . . 32 5 9 56 18 117 . . . . . . . . . 5 Cannon 1486 | . 52 20 154 68 106 110 60 56 . 151 36 98 10 65 . 68 18 119 . 98 24 84 . 30 2 24 . 33 Launcher 6 | . . 1 . 5 . . . . . . . . . . . . . . . . . . . . . . . . Special 124 | . . . . . . . . . . . . . . 9 . 9 . 4 . 11 6 23 . 14 3 13 . 32 Kinetic 1600 | . 54 20 154 68 106 110 60 56 . 151 36 98 26 65 . 68 18 215 . 98 24 84 . 30 2 24 . 33 Thermal 132 | . 2 . . . . . . . . . . . 16 5 9 56 18 21 . . . . . . . . . 5 Explosive 6 | . . 1 . 5 . . . . . . . . . . . . . . . . . . . . . . . . Electromagnetic . | . . . . . . . . . . . . . . . . . . . . . . . . . . . . . Robot Hit Streak 65 | . 47 58 51 38 56 39 40 47 . 35 40 33 43 44 45 40 18 26 . 46 10 33 . 9 13 43 . 65 Robot Miss Streak 3 | . . 1 3 1 2 2 1 1 . 1 . 1 1 1 1 1 1 2 . 1 1 1 . 1 . . . 1 Penetration Max 1 | . . . . . 1 1 1 1 . 1 . 1 1 1 . . . 1 . . . 1 . . . . . . Secondary Targets 4 | . . . . . . . . . . . . . . . . . . 4 . . . . . . . . . . Max Gunslinging Chain 1 | . . . . . . . . . . . . . . . . . . 1 . . . . . . . . . . Shots Hit Robots 1443 | . 47 16 122 58 77 84 48 43 . 117 29 76 36 71 7 102 31 182 . 80 24 74 . 21 5 30 . 63 Core Hits 575 | . 17 8 50 43 42 37 21 21 . 53 6 25 13 23 4 44 15 64 . 30 10 24 . 3 . 6 . 16 Critical Kills 28 | . . . . . . . . . . . . . 2 . . 4 1 2 . 9 2 5 . 1 . 1 . 1 Critical Parts Destroyed 44 | . . . . . . . . . . . . . 1 . . 2 1 6 . 13 2 8 . 2 . 5 . 4 Critical Strikes 240 | . 4 . 3 3 12 13 11 5 . 16 10 17 3 11 . 11 4 28 . 36 6 19 . 6 1 10 . 11 Burn 1 | . 1 . . . . . . . . . . . . . . . . . . . . . . . . . . . Destroy 83 | . . . . . . . . . . . . . 3 . . 6 3 8 . 25 4 15 . 4 . 7 . 8 Blast 156 | . 3 . 3 3 12 13 11 5 . 16 10 17 . 11 . 5 1 20 . 11 2 4 . 2 1 3 . 3 Melee Attacks 4 | . . . . . . 2 . 2 . . . . . . . . . . . . . . . . . . . . Impact 4 | . . . . . . 2 . 2 . . . . . . . . . . . . . . . . . . . . Slashing . | . . . . . . . . . . . . . . . . . . . . . . . . . . . . . Piercing . | . . . . . . . . . . . . . . . . . . . . . . . . . . . . . Sneak Attacks . | . . . . . . . . . . . . . . . . . . . . . . . . . . . . . Combat Hostiles . | . . . . . . . . . . . . . . . . . . . . . . . . . . . . . Follow-up Attacks . | . . . . . . . . . . . . . . . . . . . . . . . . . . . . . Damage Inflicted 42866 | . 819 278 2158 1845 2360 2398 1364 1357 . 3948 723 3992 1375 4035 189 3204 1032 5766 . 1725 587 1631 . 245 86 524 . 1225 Guns 6096 | . 49 . . . . . . . . . . . 824 108 189 1245 510 3082 . . . . . . . . . 89 Cannons 35597 | . 770 278 2158 1120 2342 2398 1364 1357 . 3948 723 3992 551 3927 . 1959 522 2684 . 1725 587 1631 . 245 86 524 . 706 Explosions 1089 | . . . . 725 . . . . . . . . . . . . . . . . . . . . . . . 364 Melee . | . . . . . . . . . . . . . . . . . . . . . . . . . . . . . Ramming 84 | . . . . . 18 . . . . . . . . . . . . . . . . . . . . . . 66 Kinetic 38558 | . 795 278 2158 1120 2342 2398 1364 1357 . 3948 723 3992 940 3927 . 1959 522 5231 . 1725 587 1631 . 245 86 524 . 706 Thermal 3499 | . 24 . . . . . . . . . . . 435 108 189 1245 510 535 . . . . . . . . . 453 Explosive 725 | . . . . 725 . . . . . . . . . . . . . . . . . . . . . . . . Electromagnetic . | . . . . . . . . . . . . . . . . . . . . . . . . . . . . . Impact . | . . . . . . . . . . . . . . . . . . . . . . . . . . . . . Slashing . | . . . . . . . . . . . . . . . . . . . . . . . . . . . . . Piercing . | . . . . . . . . . . . . . . . . . . . . . . . . . . . . . Highest Corruption 6 | . 1 1 . . . . . 1 . . . . 1 1 1 3 . 6 . . . 2 . . . . . 5 Average Corruption 2 | . 1 1 . . . . . 1 . . . . 1 1 1 2 . 5 . . . 1 . . . . . 3 Corruption Purged . | . . . . . . . . . . . . . . . . . . . . . . . . . . . . . Corruption Blocked . | . . . . . . . . . . . . . . . . . . . . . . . . . . . . . Effects 113 | . 4 4 . . . . . . . . . . 4 14 1 35 . 34 . . . 13 . . . . . 4 Message Errors 29 | . 1 1 . . . . . . . . . . 1 4 . 6 . 6 . . . 6 . . . . . 4 Matter Fused 29 | . 1 1 . . . . . . . . . . 3 4 1 7 . 9 . . . 3 . . . . . . Heat Flow Errors 7 | . . . . . . . . . . . . . . 1 . 2 . 4 . . . . . . . . . . Energy Discharges 10 | . 1 . . . . . . . . . . . . 1 . 4 . 3 . . . 1 . . . . . . Parts Rejected 1 | . . 1 . . . . . . . . . . . . . . . . . . . . . . . . . . Parts Fused 2 | . . . . . . . . . . . . . . 1 . . . 1 . . . . . . . . . . Data Loss (minor) 14 | . 1 1 . . . . . . . . . . . 1 . 6 . 4 . . . 1 . . . . . . Data Loss (major) 10 | . . . . . . . . . . . . . . 2 . 5 . 2 . . . 1 . . . . . . Misfires 9 | . . . . . . . . . . . . . . . . 5 . 4 . . . . . . . . . . Alerts 2 | . . . . . . . . . . . . . . . . . . 1 . . . 1 . . . . . . Overload Shots . | . . . . . . . . . . . . . . . . . . . . . . . . . . . . . Overflow Damage 1231 | . . . 25 52 52 49 23 10 . . 19 362 . 361 . 45 2 87 . 23 14 66 . . . 38 . 3 Projectiles 1212 | . . . 25 36 52 49 23 10 . . 19 362 . 361 . 45 2 87 . 23 14 66 . . . 38 . . Explosions 16 | . . . . 16 . . . . . . . . . . . . . . . . . . . . . . . . Melee 3 | . . . . . . . . . . . . . . . . . . . . . . . . . . . . 3 Knockbacks 207 | . 7 3 12 10 25 15 9 13 . 16 8 11 . 17 . 24 3 5 . 8 2 12 . 2 2 2 . 1 Impact . | . . . . . . . . . . . . . . . . . . . . . . . . . . . . . Kinetic 198 | . 7 3 12 9 23 14 9 13 . 15 8 10 . 16 . 22 3 5 . 8 2 12 . 2 2 2 . 1 Secondary 9 | . . . . 1 2 1 . . . 1 . 1 . 1 . 2 . . . . . . . . . . . . Self-Inflicted Damage 101 | . . . . . . . . . . . . . . . . . . . . . 45 . . . . . . 56 Shots 3 | . . . . . . . . . . . . . . . . . . . . . 2 . . . . . . 1 Rammed 9 | . . . . . 2 . . . . . . . . . . . . . . . . . . . . . . 7 Targets Rammed 12 | . . . . . 2 . . . . . . . . . . . . . . . . . . . . . . 10 Kicked . | . . . . . . . . . . . . . . . . . . . . . . . . . . . . . Crushed 3 | . . . . . . . . . . . . . . . . . . . . . . . . . . . . 3 Highest Temperature 660 | . 90 108 225 255 390 354 306 297 . 339 90 304 264 660 180 364 255 304 . . . . . . . 210 . 169 Average Temperature 91 | . 28 40 39 91 97 114 75 117 . 93 35 78 96 169 89 116 102 102 . . . . . . . 82 . 59 Received Heat Transfer 5642 | . 141 33 306 168 243 423 144 234 . 780 87 396 141 531 36 453 63 1111 . 99 76 46 . 30 9 29 . 63 Effects 30 | . . . . 1 1 . . . . 3 . . . 19 . 4 1 1 . . . . . . . . . . Shutdowns 6 | . . . . . . . . . . 1 . . . 4 . 1 . . . . . . . . . . . . Energy Bleed 7 | . . . . 1 1 . . . . 1 . . . 3 . . 1 . . . . . . . . . . . Interference 3 | . . . . . . . . . . . . . . . . 3 . . . . . . . . . . . . Matter Decay 5 | . . . . . . . . . . . . . . 4 . . . 1 . . . . . . . . . . Short Circuit 3 | . . . . . . . . . . 1 . . . 2 . . . . . . . . . . . . . . Damage (minor) 2 | . . . . . . . . . . . . . . 2 . . . . . . . . . . . . . . Damage (major) 3 | . . . . . . . . . . . . . . 3 . . . . . . . . . . . . . . Damage (core) 1 | . . . . . . . . . . . . . . 1 . . . . . . . . . . . . . . Siege Activations . | . . . . . . . . . . . . . . . . . . . . . . . . . . . . . Robots Corrupted 1 | . . . . . . . . . . . . 1 . . . . . . . . . . . . . . . . Combat Hostiles 1 | . . . . . . . . . . . . 1 . . . . . . . . . . . . . . . . Parts Fried 1 | . . . . . . . . . . . . 1 . . . . . . . . . . . . . . . . Impact Corruptions 4 | . . . . . . . . . . . . 2 . . . . . 1 . . . . . . . . . 1 Robots Melted . | . . . . . . . . . . . . . . . . . . . . . . . . . . . . . Combat Hostiles . | . . . . . . . . . . . . . . . . . . . . . . . . . . . . . Parts Melted 2 | . 1 . . . . . . . . . . . . . . . . . . 1 . . . . . . . . Heat Transferred 4447 | . 148 . . . . . . . . . . . 555 148 259 1665 666 703 . . . . . . . . . 303 Parts Sabotaged . | . . . . . . . . . . . . . . . . . . . . . . . . . . . . . Parts Stolen . | . . . . . . . . . . . . . . . . . . . . . . . . . . . . . Parts Stripped . | . . . . . . . . . . . . . . . . . . . . . . . . . . . . . Power Chain Reactions . | . . . . . . . . . . . . . . . . . . . . . . . . . . . . . Alert | -11 -10 -10 -9 -9 -8 -8 -8 -8 -7 -7 -7 -7 -6 -6 -6 -6 -5 -5 -4 -4 -4 -4 -3 -3 -2 -2 -2 -1 ------- Run | Yrd Mat Min Mat Min Mat Gar Mat Gar Fac Gar Fac Gar Fac Gar Fac Gar Fac Gar Fac Gar Fac Gar Res Gar Res Gar Res Acc Peak Influence 1157 | . 196 148 372 126 276 947 445 382 148 1157 461 985 467 868 396 1127 580 1128 439 1011 409 1022 486 1126 557 350 94 72 Initial 475 | . . 3 5 20 . 75 338 13 148 79 451 175 384 35 338 213 439 55 439 236 394 214 431 283 475 325 94 42 Average 386 | . 37 15 94 44 78 436 164 250 148 713 361 603 217 539 349 653 339 501 439 606 255 668 443 700 486 241 94 26 Maximum Alert Level 4 | . . . 1 . 1 3 2 1 . 4 2 3 2 3 1 4 2 4 2 3 2 3 2 4 2 1 . . Low Security (%) 36 | 100 100 100 90 100 91 35 65 37 100 6 12 4 46 6 . . 21 18 . . 22 . . . . 14 100 100 Level 1 20 | . . . 9 . 8 5 28 62 . 10 28 14 28 32 100 27 39 22 . 23 77 10 . 17 . 85 . . Level 2 24 | . . . . . . 33 5 . . 31 59 43 25 30 . 28 39 38 100 47 . 57 100 35 100 . . . Level 3 16 | . . . . . . 25 . . . 38 . 37 . 31 . 40 . 19 . 29 . 32 . 40 . . . . Level 4 1 | . . . . . . . . . . 12 . . . . . 4 . 1 . . . . . 6 . . . . Level 5 . | . . . . . . . . . . . . . . . . . . . . . . . . . . . . . High Security . | . . . . . . . . . . . . . . . . . . . . . . . . . . . . . Max Security . | . . . . . . . . . . . . . . . . . . . . . . . . . . . . . Squads Dispatched 29 | . . . 1 . 3 . 3 . . . 2 . 2 . 1 . 3 . . . 4 . . . 2 . . 8 Investigation 6 | . . . . . . . 1 . . . 1 . . . 1 . . . . . 2 . . . . . . 1 Extermination 7 | . . . . . . . . . . . 1 . 2 . . . 2 . . . 1 . . . . . . 1 Reinforcement 14 | . . . 1 . 3 . 2 . . . . . . . . . 1 . . . 1 . . . . . . 6 Assault . | . . . . . . . . . . . . . . . . . . . . . . . . . . . . . Garrison 2 | . . . . . . . . . . . . . . . . . . . . . . . . . 2 . . . Intercept . | . . . . . . . . . . . . . . . . . . . . . . . . . . . . . Searches Triggered . | . . . . . . . . . . . . . . . . . . . . . . . . . . . . . Construction Impeded . | . . . . . . . . . . . . . . . . . . . . . . . . . . . . . Haulers Reinforced 2 | . . . . . . . . . . . . . . . . . . . . . . . . . . . . 2 Active Scanning Responses . | . . . . . . . . . . . . . . . . . . . . . . . . . . . . . Cargo Convoy Interrupts . | . . . . . . . . . . . . . . . . . . . . . . . . . . . . . Alert ID Control Effect 58 | . . . . . . . . . . . . . . . . 2 . 1 . 6 4 8 . 5 4 12 . 16 Stealth | -11 -10 -10 -9 -9 -8 -8 -8 -8 -7 -7 -7 -7 -6 -6 -6 -6 -5 -5 -4 -4 -4 -4 -3 -3 -2 -2 -2 -1 --------- Run | Yrd Mat Min Mat Min Mat Gar Mat Gar Fac Gar Fac Gar Fac Gar Fac Gar Fac Gar Fac Gar Fac Gar Res Gar Res Gar Res Acc Distress Signals 20 | . 2 . 2 . 4 . 3 . . . . . . . . . . . . 2 . . 2 . . . . 5 Communications Jammed . | . . . . . . . . . . . . . . . . . . . . . . . . . . . . . Distress Signals . | . . . . . . . . . . . . . . . . . . . . . . . . . . . . . Times Spotted 619 | . 16 7 43 30 30 28 18 15 . 35 6 28 8 39 3 45 12 38 . 41 22 42 . 28 15 32 . 38 Peak Tracking Total 10 | . 4 3 4 10 4 4 4 4 . 5 3 4 2 7 3 5 3 8 . 7 7 7 . 5 6 9 . 5 Tactical Retreats 32 | . 1 1 2 1 . 1 . . . 4 1 1 . 8 . 5 . 3 . . . . . . . . . 4 Traps | -11 -10 -10 -9 -9 -8 -8 -8 -8 -7 -7 -7 -7 -6 -6 -6 -6 -5 -5 -4 -4 -4 -4 -3 -3 -2 -2 -2 -1 ------- Run | Yrd Mat Min Mat Min Mat Gar Mat Gar Fac Gar Fac Gar Fac Gar Fac Gar Fac Gar Fac Gar Fac Gar Res Gar Res Gar Res Acc Traps Triggered 24 | . 5 . 1 . 3 2 . 1 . 3 . . . . 1 1 . 1 . 1 1 1 . 2 . . . 1 Indirectly . | . . . . . . . . . . . . . . . . . . . . . . . . . . . . . Trap Hack Attempts . | . . . . . . . . . . . . . . . . . . . . . . . . . . . . . Triggered . | . . . . . . . . . . . . . . . . . . . . . . . . . . . . . Disarmed . | . . . . . . . . . . . . . . . . . . . . . . . . . . . . . Reprogrammed . | . . . . . . . . . . . . . . . . . . . . . . . . . . . . . Reused . | . . . . . . . . . . . . . . . . . . . . . . . . . . . . . Traps Extracted . | . . . . . . . . . . . . . . . . . . . . . . . . . . . . . Installed . | . . . . . . . . . . . . . . . . . . . . . . . . . . . . . Triggered . | . . . . . . . . . . . . . . . . . . . . . . . . . . . . . Machines | -11 -10 -10 -9 -9 -8 -8 -8 -8 -7 -7 -7 -7 -6 -6 -6 -6 -5 -5 -4 -4 -4 -4 -3 -3 -2 -2 -2 -1 ---------- Run | Yrd Mat Min Mat Min Mat Gar Mat Gar Fac Gar Fac Gar Fac Gar Fac Gar Fac Gar Fac Gar Fac Gar Res Gar Res Gar Res Acc Machines Disabled 44 | . . . . . . 1 1 1 . . 1 2 1 . . . . 10 . 1 12 4 . 4 1 4 . 1 Max in Single Turn 2 | . . . . . . 1 1 1 . . 1 1 1 . . . . 2 . 1 2 1 . 1 . 1 . 1 Garrison Access 1 | . . . . . . . . . . . . . . . . . . . . . . . . . . . . 1 Garrison Relay 16 | . . . . . . 1 . . . 1 . 1 . . . . . 1 . 1 . 3 . 5 . 3 . . Energy Cycler 1 | . . . . . . . . . . . . . . . . . . . . . . . . . . . . 1 Machines Repaired . | . . . . . . . . . . . . . . . . . . . . . . . . . . . . . Machines Dismantled . | . . . . . . . . . . . . . . . . . . . . . . . . . . . . . Machines Sabotaged . | . . . . . . . . . . . . . . . . . . . . . . . . . . . . . Overloaded Fab Kills . | . . . . . . . . . . . . . . . . . . . . . . . . . . . . . Hacking | -11 -10 -10 -9 -9 -8 -8 -8 -8 -7 -7 -7 -7 -6 -6 -6 -6 -5 -5 -4 -4 -4 -4 -3 -3 -2 -2 -2 -1 --------- Run | Yrd Mat Min Mat Min Mat Gar Mat Gar Fac Gar Fac Gar Fac Gar Fac Gar Fac Gar Fac Gar Fac Gar Res Gar Res Gar Res Acc Machines Accessed 64 | . 1 . 7 1 4 3 6 2 1 2 2 2 4 2 1 4 2 1 1 3 3 3 1 2 1 3 . 2 Terminals 45 | . 1 . 5 1 2 3 4 2 . 2 . 2 2 2 . 4 . 1 . 3 2 3 . 2 . 3 . 1 Fabricators 1 | . . . . . . . . . . . 1 . . . . . . . . . . . . . . . . . Repair Stations 3 | . . . 2 . . . . . . . . . . . . . 1 . . . . . . . . . . . Recycling Units 1 | . . . . . . . . . . . . . 1 . . . . . . . . . . . . . . . Scanalyzers 2 | . . . . . 1 . 1 . . . . . . . . . . . . . . . . . . . . . Garrison Access 12 | . . . . . 1 . 1 . 1 . 1 . 1 . 1 . 1 . 1 . 1 . 1 . 1 . . 1 Total Hacks 102 | . 3 . 10 2 8 8 10 4 1 5 4 3 5 2 1 5 6 1 1 3 5 3 1 2 1 5 . 3 Successful 65 | . 1 . 8 . 4 3 7 2 1 1 2 2 4 2 1 4 5 1 1 3 2 3 1 2 1 3 . 1 Failed 37 | . 2 . 2 2 4 5 3 2 . 4 2 1 1 . . 1 1 . . . 3 . . . . 2 . 2 Catastrophic 3 | . . . . . . . 1 . . . . . . . . . . . . . 2 . . . . . . . Database Lockouts . | . . . . . . . . . . . . . . . . . . . . . . . . . . . . . Manual 25 | . 3 . 3 2 4 . 6 . . . . . 3 . . . . . . . 4 . . . . . . . Terminals 71 | . 3 . 6 2 4 8 6 4 . 5 . 3 3 2 . 5 . 1 . 3 4 3 . 2 . 5 . 2 Fabricators 3 | . . . . . . . . . . . 3 . . . . . . . . . . . . . . . . . Repair Stations 9 | . . . 4 . . . . . . . . . . . . . 5 . . . . . . . . . . . Recycling Units 1 | . . . . . . . . . . . . . 1 . . . . . . . . . . . . . . . Scanalyzers 5 | . . . . . 2 . 3 . . . . . . . . . . . . . . . . . . . . . Garrison Access 13 | . . . . . 2 . 1 . 1 . 1 . 1 . 1 . 1 . 1 . 1 . 1 . 1 . . 1 Terminal Hacks 39 | . 1 . 4 . 2 3 3 2 . 1 . 2 2 2 . 4 . 1 . 3 1 3 . 2 . 3 . . Robot Analysis 2 | . . . 1 . 1 . . . . . . . . . . . . . . . . . . . . . . . Open Door 5 | . . . . . . 1 . . . . . . . . . 1 . . . 1 . 1 . 1 . . . . Emergency Access Points 10 | . . . . . . 1 . 1 . . . 1 . 1 . 1 . 1 . 1 . 1 . 1 . 1 . . Terminal Index 2 | . . . 1 . . . . . . . . . 1 . . . . . . . . . . . . . . . Garrison Index 2 | . . . . . . . 1 . . . . . . . . . . . . . 1 . . . . . . . Unreport Threat 6 | . 1 . 2 . 1 . 2 . . . . . . . . . . . . . . . . . . . . . Garrison Status 1 | . . . . . . . . . . . . . 1 . . . . . . . . . . . . . . . Garrison Registry 4 | . . . . . . . . . . . . 1 . . . 1 . . . . . 1 . . . 1 . . Patrol Navigation 4 | . . . . . . . . . . 1 . . . 1 . . . . . 1 . . . . . 1 . . Security Stations 3 | . . . . . . 1 . 1 . . . . . . . 1 . . . . . . . . . . . . Fabricator Hacks 1 | . . . . . . . . . . . 1 . . . . . . . . . . . . . . . . . Build 1 | . . . . . . . . . . . 1 . . . . . . . . . . . . . . . . . Repair Station Hacks 8 | . . . 4 . . . . . . . . . . . . . 4 . . . . . . . . . . . Scan Component 4 | . . . 2 . . . . . . . . . . . . . 2 . . . . . . . . . . . Repair 4 | . . . 2 . . . . . . . . . . . . . 2 . . . . . . . . . . . Recycling Unit Hacks 1 | . . . . . . . . . . . . . 1 . . . . . . . . . . . . . . . Report Inventory 1 | . . . . . . . . . . . . . 1 . . . . . . . . . . . . . . . Scanalyzer 4 | . . . . . 1 . 3 . . . . . . . . . . . . . . . . . . . . . Insert Component 3 | . . . . . 1 . 2 . . . . . . . . . . . . . . . . . . . . . Analyze 1 | . . . . . . . 1 . . . . . . . . . . . . . . . . . . . . . Garrison Access Hacks 12 | . . . . . 1 . 1 . 1 . 1 . 1 . 1 . 1 . 1 . 1 . 1 . 1 . . 1 Unlock Access 11 | . . . . . 1 . 1 . 1 . 1 . 1 . 1 . 1 . 1 . 1 . 1 . 1 . . . Seal Access 1 | . . . . . . . . . . . . . . . . . . . . . . . . . . . . 1 Unauthorized Hacks . | . . . . . . . . . . . . . . . . . . . . . . . . . . . . . Terminals . | . . . . . . . . . . . . . . . . . . . . . . . . . . . . . Fabricators . | . . . . . . . . . . . . . . . . . . . . . . . . . . . . . Repair Stations . | . . . . . . . . . . . . . . . . . . . . . . . . . . . . . Recycling Units . | . . . . . . . . . . . . . . . . . . . . . . . . . . . . . Scanalyzers . | . . . . . . . . . . . . . . . . . . . . . . . . . . . . . Garrison Access . | . . . . . . . . . . . . . . . . . . . . . . . . . . . . . Data Cores Recovered 5 | . . . 1 . 1 . 1 . . . . . 1 . . . . . . . 1 . . . . . . . Used . | . . . . . . . . . . . . . . . . . . . . . . . . . . . . . Hacking Detections 40 | . 1 . 5 1 2 3 5 2 . 2 2 . 4 2 . 2 1 1 . 1 1 . 1 . 1 2 . 1 Full Trace Events 6 | . . . . . . 1 1 . . 1 1 . . . . . . . . . 1 . . . . . . 1 Feedback Events . | . . . . . . . . . . . . . . . . . . . . . . . . . . . . . Feedback Blocked . | . . . . . . . . . . . . . . . . . . . . . . . . . . . . . Robot Schematics Acquired . | . . . . . . . . . . . . . . . . . . . . . . . . . . . . . Robots Built . | . . . . . . . . . . . . . . . . . . . . . . . . . . . . . Authchips . | . . . . . . . . . . . . . . . . . . . . . . . . . . . . . Time . | . . . . . . . . . . . . . . . . . . . . . . . . . . . . . Total Robot Build Rating . | . . . . . . . . . . . . . . . . . . . . . . . . . . . . . Part Schematics Acquired . | . . . . . . . . . . . . . . . . . . . . . . . . . . . . . Parts Built 2 | . . . . . . . . . . . 2 . . . . . . . . . . . . . . . . . Authchips . | . . . . . . . . . . . . . . . . . . . . . . . . . . . . . Time 53 | . . . . . . . . . . . 53 . . . . . . . . . . . . . . . . . Total Part Build Rating 12 | . . . . . . . . . . . 12 . . . . . . . . . . . . . . . . . Parts Repaired 4 | . . . 2 . . . . . . . . . . . . . 2 . . . . . . . . . . . Time 128 | . . . 52 . . . . . . . . . . . . . 76 . . . . . . . . . . . Parts Recycled . | . . . . . . . . . . . . . . . . . . . . . . . . . . . . . Recycled Matter . | . . . . . . . . . . . . . . . . . . . . . . . . . . . . . Retrieved Matter . | . . . . . . . . . . . . . . . . . . . . . . . . . . . . . Retrieved Components . | . . . . . . . . . . . . . . . . . . . . . . . . . . . . . Parts Scanalyzed 1 | . . . . . . . 1 . . . . . . . . . . . . . . . . . . . . . Part Schematics Acquired . | . . . . . . . . . . . . . . . . . . . . . . . . . . . . . Parts Damaged . | . . . . . . . . . . . . . . . . . . . . . . . . . . . . . Bothacking | -11 -10 -10 -9 -9 -8 -8 -8 -8 -7 -7 -7 -7 -6 -6 -6 -6 -5 -5 -4 -4 -4 -4 -3 -3 -2 -2 -2 -1 ------------ Run | Yrd Mat Min Mat Min Mat Gar Mat Gar Fac Gar Fac Gar Fac Gar Fac Gar Fac Gar Fac Gar Fac Gar Res Gar Res Gar Res Acc Used RIF Installer 13 | . . . . . . 2 . 1 . 1 . 1 . 1 . 1 . 2 . 1 . 1 . 1 . 1 . . Hotswap 1 | . . . . . . . . . . . . . . 1 . . . . . . . . . . . . . . Command Fork 3 | . . . . . . . . 1 . . . . . . . . . 1 . 1 . . . . . . . . Zone Cloak 1 | . . . . . . . . . . . . . . . . . . . . . . . . . . 1 . . Watcher Feeds 1 | . . . . . . . . . . 1 . . . . . . . . . . . . . . . . . . Patrol Navigation 1 | . . . . . . 1 . . . . . . . . . . . . . . . . . . . . . . Alert ID Control 1 | . . . . . . . . . . . . . . . . 1 . . . . . . . . . . . . Structural Interface 1 | . . . . . . . . . . . . . . . . . . . . . . 1 . . . . . . Program Shield 1 | . . . . . . . . . . . . 1 . . . . . . . . . . . . . . . . Autooverride 1 | . . . . . . . . . . . . . . . . . . . . . . . . 1 . . . . Crosswire 1 | . . . . . . . . . . . . . . . . . . 1 . . . . . . . . . . Robots Hacked 78 | . . . . . . . . . . . . . . 4 . 5 . 2 . 8 5 9 . 12 3 11 . 19 Non-combat 3 | . . . . . . . . . . . . . . . . . . . . . 1 . . . . . . 2 Combat 75 | . . . . . . . . . . . . . . 4 . 5 . 2 . 8 4 9 . 12 3 11 . 17 Autooverrided 3 | . . . . . . . . . . . . . . . . . . . . . . . . . . 1 . 2 Robot Hacks Applied 76 | . . . . . . . . . . . . . . 5 . 5 . 2 . 8 5 9 . 12 3 10 . 17 parse_system 2 | . . . . . . . . . . . . . . . . . . . . . . . . . . . . 2 find_fabricator 2 | . . . . . . . . . . . . . . . . . . . . . . . . . . . . 2 purge_threat 1 | . . . . . . . . . . . . . . . . . . . . . 1 . . . . . . . find_shortcuts 2 | . . . . . . . . . . . . . . 1 . . . . . . . . . 1 . . . . amplify_resonance 1 | . . . . . . . . . . . . . . . . . . . . . . . . . . . . 1 wipe_record 1 | . . . . . . . . . . . . . . . . 1 . . . . . . . . . . . . reboot_system 1 | . . . . . . . . . . . . . . . . . . . . . . . . . . . . 1 streamctrl_high 1 | . . . . . . . . . . . . . . 1 . . . . . . . . . . . . . . formatsys_high 64 | . . . . . . . . . . . . . . 3 . 4 . 2 . 8 4 9 . 10 3 10 . 11 formatsys_deep 1 | . . . . . . . . . . . . . . . . . . . . . . . . 1 . . . . Relay Couplers Released 70 | . . . . . . 5 . . . 5 . 4 . . . . . 5 . 5 . 12 . 20 . 14 . . Machine Destruction 70 | . . . . . . 5 . . . 5 . 4 . . . . . 5 . 5 . 12 . 20 . 14 . . Attached 24 | . . . . . . . . . 1 . . 1 . 2 . 3 . 2 . 1 2 5 . 3 . 2 . 2 Crosswired 20 | . . . . . . . . . . . . . . . . . . 3 . 1 . 3 . 7 . 6 . . Fabnet Peak Effective % . | . . . . . . . . . . . . . . . . . . . . . . . . . . . . . Robots Rewired 9 | . . . . . . . . . . . . . . . . 3 . . . 2 . 4 . . . . . . Allies Hacked 1 | . . . . . . . . . . . . . . . . . . . . . . . . . 1 . . . Hacks Repelled . | . . . . . . . . . . . . . . . . . . . . . . . . . . . . . Allies | -11 -10 -10 -9 -9 -8 -8 -8 -8 -7 -7 -7 -7 -6 -6 -6 -6 -5 -5 -4 -4 -4 -4 -3 -3 -2 -2 -2 -1 -------- Run | Yrd Mat Min Mat Min Mat Gar Mat Gar Fac Gar Fac Gar Fac Gar Fac Gar Fac Gar Fac Gar Fac Gar Res Gar Res Gar Res Acc Total Allies 125 | . . . . 3 . . . . . . . . . 4 . 7 . 4 . 16 6 21 . 22 7 17 . 18 Largest Group 23 | . . . . 3 . . . . . . . . . 3 3 3 . 4 . 13 14 14 13 21 23 23 8 14 Highest-Rated Group 1261 | . . . . 40 . . . . . . . . . 36 36 143 . 127 . 767 809 977 829 1135 1261 1261 436 887 Highest-Rated Ally 178 | . . . . 16 . . . . . . . . . 29 12 51 . 37 . 137 137 148 137 137 116 116 58 178 Total Orders 1 | . . . . . . . . . . . . . . . . . . . . . . . . 1 . . . . FOLLOW 1 | . . . . . . . . . . . . . . . . . . . . . . . . 1 . . . . Ally Attacks 852 | . . . . 7 . . . . . . . . . 18 22 47 . 10 . 85 82 104 4 117 83 158 . 115 Total Damage 27120 | . . . . 55 . . . . . . . . . 203 248 1028 . 226 . 2730 2365 3705 116 3894 2285 5668 . 4597 Kills 114 | . . . . 2 . . . . . . . . . 1 1 6 . 1 . 15 11 18 2 14 9 19 . 15 Allies Corrupted 3 | . . . . . . . . . . . . . . . . . . 1 . . . . . . . . . 2 Allies Melted 4 | . . . . . . . . . . . . . . . . . . . . . . . . 1 . 3 . . Intel | -11 -10 -10 -9 -9 -8 -8 -8 -8 -7 -7 -7 -7 -6 -6 -6 -6 -5 -5 -4 -4 -4 -4 -3 -3 -2 -2 -2 -1 ------- Run | Yrd Mat Min Mat Min Mat Gar Mat Gar Fac Gar Fac Gar Fac Gar Fac Gar Fac Gar Fac Gar Fac Gar Res Gar Res Gar Res Acc Robot Analysis Total 2 | . . . 1 . 1 . . . . . . . . . . . . . . . . . . . . . . . Derelict Logs Recovered 1 | . . . . 1 . . . . . . . . . . . . . . . . . . . . . . . . Drone Launches . | . . . . . . . . . . . . . . . . . . . . . . . . . . . . . Drone Recoveries . | . . . . . . . . . . . . . . . . . . . . . . . . . . . . . Exploration | -11 -10 -10 -9 -9 -8 -8 -8 -8 -7 -7 -7 -7 -6 -6 -6 -6 -5 -5 -4 -4 -4 -4 -3 -3 -2 -2 -2 -1 ------------- Run | Yrd Mat Min Mat Min Mat Gar Mat Gar Fac Gar Fac Gar Fac Gar Fac Gar Fac Gar Fac Gar Fac Gar Res Gar Res Gar Res Acc Turns Passed 32006 | 74 1190 917 2294 1182 1597 1605 1134 985 107 1739 675 1630 1287 1746 175 1875 1025 2129 158 1654 679 1781 152 2242 189 667 76 1042 Spaces Moved 16338 | 42 627 526 1114 588 754 812 575 536 64 849 364 839 681 923 94 1000 501 1034 91 845 348 933 24 1120 90 355 47 562 Core 2 | 2 . . . . . . . . . . . . . . . . . . . . . . . . . . . . Treads 16336 | 40 627 526 1114 588 754 812 575 536 64 849 364 839 681 923 94 1000 501 1034 91 845 348 933 24 1120 90 355 47 562 Legs . | . . . . . . . . . . . . . . . . . . . . . . . . . . . . . Wheels . | . . . . . . . . . . . . . . . . . . . . . . . . . . . . . Hover . | . . . . . . . . . . . . . . . . . . . . . . . . . . . . . Flight . | . . . . . . . . . . . . . . . . . . . . . . . . . . . . . Fastest Speed 50 | 50 160 160 160 160 160 165 163 163 163 163 161 157 160 161 159 159 159 160 161 158 158 158 158 158 158 158 158 153 Average Speed 160 | 154 160 160 160 160 165 166 163 163 163 163 161 160 161 161 159 159 160 163 161 159 158 158 158 158 158 158 158 157 Slowest Speed 246 | 160 160 160 160 160 246 246 167 163 163 163 163 161 163 161 161 159 162 165 164 161 158 158 158 158 158 158 158 158 Overloaded Moves . | . . . . . . . . . . . . . . . . . . . . . . . . . . . . . Propulsion Burnouts . | . . . . . . . . . . . . . . . . . . . . . . . . . . . . . Robots Hopped . | . . . . . . . . . . . . . . . . . . . . . . . . . . . . . Cave-ins Triggered . | . . . . . . . . . . . . . . . . . . . . . . . . . . . . . Exploration Rate (%) 49 | 4 84 90 89 93 67 58 66 66 4 79 11 80 19 89 4 70 17 75 4 82 16 94 5 89 5 57 5 24 Regions Visited 28 Branch Regions 2 Pre-discovered Areas 1 | . . 1 . . . . . . . . . . . . . . . . . . . . . . . . . . Known Exits Taken 17 | 1 1 1 1 1 1 . 1 . 1 . 1 . 1 . 1 . 1 . 1 . 1 . 1 . 1 . 1 . Unknown Exits Taken . | . . . . . . . . . . . . . . . . . . . . . . . . . . . . . Scrap Searched 3 | . . 1 . 2 . . . . . . . . . . . . . . . . . . . . . . . . Spaces Dug 54 | . . . . . . . . . . . 4 . . . . . . . . . 41 2 . 7 . . . . Terrain Destroyed 272 | . . 6 . 26 31 1 17 1 . 16 7 10 15 11 . 8 4 30 . 12 41 9 . 7 . 3 . 17 Melee . | . . . . . . . . . . . . . . . . . . . . . . . . . . . . . Projectile 186 | . . . . 2 31 1 17 1 . 16 7 10 15 11 . 8 4 30 . 12 1 9 . 7 . 3 . 1 AOE 86 | . . 6 . 24 . . . . . . . . . . . . . . . . 40 . . . . . . 16 Terrain Rammed . | . . . . . . . . . . . . . . . . . . . . . . . . . . . . . Walls Destroyed . | . . . . . . . . . . . . . . . . . . . . . . . . . . . . . Machines Disabled . | . . . . . . . . . . . . . . . . . . . . . . . . . . . . . Actions | -11 -10 -10 -9 -9 -8 -8 -8 -8 -7 -7 -7 -7 -6 -6 -6 -6 -5 -5 -4 -4 -4 -4 -3 -3 -2 -2 -2 -1 --------- Run | Yrd Mat Min Mat Min Mat Gar Mat Gar Fac Gar Fac Gar Fac Gar Fac Gar Fac Gar Fac Gar Fac Gar Res Gar Res Gar Res Acc Total 20232 | 48 756 579 1470 754 1000 948 713 586 66 1052 416 1001 826 1081 110 1156 681 1242 104 1057 450 1155 138 1561 134 434 49 665 Wait 2253 | . 79 33 240 114 143 63 87 15 . 99 23 49 98 45 . 60 130 33 . 122 77 124 110 392 39 40 3 35 Move 16318 | 41 626 525 1113 587 754 811 575 535 64 848 364 838 681 922 94 999 501 1033 90 844 348 932 24 1119 89 354 46 561 Hop . | . . . . . . . . . . . . . . . . . . . . . . . . . . . . . Pick Up 147 | . 8 4 14 . 9 3 5 1 . 6 1 11 3 7 1 4 13 17 2 9 1 11 . 8 . 9 . . Fast Attach 78 | 7 8 1 6 1 10 3 . . 1 2 1 5 3 1 . 4 5 8 . 4 3 1 . 1 . 1 . 2 Attach 74 | . . . 1 3 1 2 . . 1 6 1 5 4 9 . 3 2 10 2 3 2 5 3 3 1 2 . 5 Detach 23 | . 3 . . 1 2 . . . . . 1 . 2 4 . . 1 3 1 3 . 2 . . . . . . Swap 90 | . 1 3 8 6 8 6 6 4 . 6 4 2 6 4 3 9 6 2 4 . . 2 . . . . . . Drop 147 | . 3 1 11 1 18 1 10 1 . 5 3 15 6 10 3 2 5 15 5 12 1 11 1 5 . 2 . . Fire 1075 | . 28 12 77 41 53 56 30 28 . 79 18 76 23 79 9 75 18 120 . 60 18 65 . 29 5 25 . 51 Melee 4 | . . . . . . 2 . 2 . . . . . . . . . . . . . . . . . . . . Ram . | . . . . . . . . . . . . . . . . . . . . . . . . . . . . . Kick . | . . . . . . . . . . . . . . . . . . . . . . . . . . . . . Crush 12 | . . . . . 2 . . . . . . . . . . . . . . . . . . . . . . 10 Escape Stasis . | . . . . . . . . . . . . . . . . . . . . . . . . . . . . . Rewire 11 | . . . . . . 1 . . . 1 . . . . . . . 1 . . . 2 . 4 . 1 . 1 Trap . | . . . . . . . . . . . . . . . . . . . . . . . . . . . . . Miscellaneous . | . . . . . . . . . . . . . . . . . . . . . . . . . . . . . Route ------- -11/Scrapyard -10/Materials (discovered 4 exits: *Mat x2 / *Min x2) -10/Mines (discovered 3 exits: *Mat x2 / *Exi) -9/Materials (discovered 3 exits: *Mat x2 / *Min) -9/Mines (discovered 2 exits: *Mat x2) -8/Materials (discovered 3 exits: *Fac / *Sto / Gar) -8/Garrison (discovered 3 exits: *Mat x3) -8/Materials (discovered 3 exits: *Fac / *Sto / Gar) -8/Garrison (discovered 3 exits: *Fac x3) -7/Factory -7/Garrison (discovered 3 exits: *Fac x3) -7/Factory -7/Garrison (discovered 3 exits: *Fac x3) -6/Factory (discovered 2 exits: *Fac / Gar) -6/Garrison (discovered 3 exits: *Fac x3) -6/Factory -6/Garrison (discovered 3 exits: *Fac x3) -5/Factory -5/Garrison (discovered 3 exits: *Fac x3) -4/Factory -4/Garrison (discovered 3 exits: *Fac x3) -4/Factory -4/Garrison (discovered 3 exits: *Res x3) -3/Research -3/Garrison (discovered 3 exits: *Res x3) -2/Research -2/Garrison (discovered 3 exits: *Res x3) -2/Research (discovered 2 exits: *Acc / *Qua) -1/Access To Epsilon Eridani History --------- Turn | Location | Event 43 | -11/Scrapyard | Identified exit to Materials 43 | -11/Scrapyard | Discovered exit to Materials (range 16) 75 | -11/Scrapyard | Entered Materials 75 | -10/Materials | Evolved 1 slot: Propulsion x1 312 | -10/Materials | Build established: Hacker-Mutant 364 | -10/Materials | Identified exit to Mines 364 | -10/Materials | Discovered exit to Mines (range 10) 630 | -10/Materials | Identified exit to Materials 630 | -10/Materials | Discovered exit to Materials (range 11) 735 | -10/Materials | Discovered exit to Mines (range 16) 904 | -10/Materials | Discovered exit to Materials (range 10) 1265 | -10/Materials | Entered Mines 1387 | -10/Mines | Deemed a non-threat by the Exiles lab entrance 1389 | -10/Mines | Identified exit to Exiles 1389 | -10/Mines | Discovered exit to Exiles (range 5) 1488 | -10/Mines | Discovered exit to Materials (range 5) 1490 | -10/Mines | Learned location of Storage (-8) 1806 | -10/Mines | Found DCF Scrap (14 items) 1936 | -10/Mines | Discovered exit to Materials (range 12) 1993 | -10/Mines | Received a Rocket Launcher from a helpful Derelict 2182 | -10/Mines | Entered Materials 2182 | -9/Materials | Evolved 2 slots: Propulsion x1, Utility x1 2777 | -9/Materials | Repaired Lgt. Cannon 3169 | -9/Materials | Identified exit to Materials 3169 | -9/Materials | Discovered exit to Materials (range 8) 3891 | -9/Materials | Discovered exit to Materials (range 16) 4130 | -9/Materials | Repaired Lgt. Cannon 4398 | -9/Materials | Identified exit to Mines 4398 | -9/Materials | Discovered exit to Mines (range 8) 4476 | -9/Materials | Entered Mines 4566 | -9/Mines | Discovered exit to Materials (range 5) 4591 | -9/Mines | Learned location of 1 exit from Materials 4929 | -9/Mines | Assisted by bots powering up and referring to "LRC-V3" 4961 | -9/Mines | Assembled infested the area 4966 | -9/Mines | Assisted by a Guerilla fighting off Assembled 5065 | -9/Mines | Lost 4 allies 5136 | -9/Mines | Destroyed 15 combat bots 5241 | -9/Mines | Discovered exit to Materials (range 5) 5658 | -9/Mines | Entered Materials 5658 | -8/Materials | Evolved 2 slots: Utility x2 5659 | -8/Materials | Identified exit to Factory 6179 | -8/Materials | Identified exit to Storage 6179 | -8/Materials | Discovered exit to Storage (range 15) 7255 | -8/Materials | Identified exit to Garrison 7255 | -8/Materials | Entered Garrison 7321 | -8/Garrison | Learned Materials security intel 7373 | -8/Garrison | Triggered checkpoint 7611 | -8/Garrison | Triggered checkpoint 7715 | -8/Garrison | Identified exit to Materials 7715 | -8/Garrison | Discovered exit to Materials (range 5) 7819 | -8/Garrison | Triggered checkpoint 8063 | -8/Garrison | Discovered exit to Materials (range 10) 8127 | -8/Garrison | Triggered checkpoint 8381 | -8/Garrison | Installed Relay Interface Framework 8603 | -8/Garrison | Discovered exit to Materials (range 10) 8645 | -8/Garrison | Triggered checkpoint 8715 | -8/Garrison | Triggered checkpoint 8719 | -8/Garrison | Garrison Relay disabled 8774 | -8/Garrison | Expanded RIF knowledge: Patrol Navigation 8860 | -8/Garrison | Entered Materials 9806 | -8/Materials | Discovered exit to Factory (range 3) 9975 | -8/Materials | Discovered exit to Storage (range 5) 9994 | -8/Materials | Identified exit to Garrison 9994 | -8/Materials | Entered Garrison 10019 | -8/Garrison | Learned Factory security intel 10042 | -8/Garrison | Triggered checkpoint 10202 | -8/Garrison | Triggered checkpoint 10303 | -8/Garrison | Discovered exit to Factory (range 15) 10350 | -8/Garrison | Triggered checkpoint 10480 | -8/Garrison | Triggered checkpoint 10480 | -8/Garrison | Triggered checkpoint 10555 | -8/Garrison | Discovered exit to Factory (range 12) 10578 | -8/Garrison | Expanded RIF knowledge: Command Fork 10734 | -8/Garrison | Discovered exit to Factory (range 15) 10824 | -8/Garrison | Triggered checkpoint 10979 | -8/Garrison | Entered Factory 10979 | -7/Factory | Evolved 2 slots: Utility x2 11086 | -7/Factory | Identified exit to Garrison 11086 | -7/Factory | Entered Garrison 11178 | -7/Garrison | Triggered checkpoint 11239 | -7/Garrison | Garrison Relay disabled 11310 | -7/Garrison | Triggered checkpoint 11460 | -7/Garrison | Identified exit to Factory 11460 | -7/Garrison | Discovered exit to Factory (range 10) 11496 | -7/Garrison | Triggered checkpoint 11614 | -7/Garrison | Triggered checkpoint 11754 | -7/Garrison | Discovered exit to Factory (range 8) 12131 | -7/Garrison | Expanded RIF knowledge: Watcher Feeds 12218 | -7/Garrison | Triggered checkpoint 12414 | -7/Garrison | Triggered checkpoint 12423 | -7/Garrison | Discovered exit to Factory (range 15) 12426 | -7/Garrison | Triggered checkpoint 12825 | -7/Garrison | Entered Factory 13262 | -7/Factory | Fabricated Tesla Rifle (x2) 13500 | -7/Factory | Identified exit to Garrison 13500 | -7/Factory | Entered Garrison 13536 | -7/Garrison | Triggered checkpoint 13656 | -7/Garrison | Triggered checkpoint 13692 | -7/Garrison | Triggered checkpoint 13850 | -7/Garrison | Triggered checkpoint 13992 | -7/Garrison | Identified exit to Factory 13992 | -7/Garrison | Discovered exit to Factory (range 12) 14141 | -7/Garrison | Discovered exit to Factory (range 66) 14141 | -7/Garrison | Discovered exit to Factory (range 60) 14141 | -7/Garrison | Discovered exit to Factory (range 12) 14172 | -7/Garrison | Triggered checkpoint 14452 | -7/Garrison | Triggered checkpoint 14658 | -7/Garrison | Triggered checkpoint 14716 | -7/Garrison | Expanded RIF knowledge: Program Shield 14861 | -7/Garrison | Spotted B-75 Beast 14914 | -7/Garrison | Destroyed B-75 Beast 15130 | -7/Garrison | Entered Factory 15130 | -6/Factory | Evolved 2 slots: Propulsion x1, Utility x1 16272 | -6/Factory | Identified exit to Factory 16272 | -6/Factory | Discovered exit to Factory (range 5) 16417 | -6/Factory | Identified exit to Garrison 16417 | -6/Factory | Entered Garrison 16553 | -6/Garrison | Destroyed 9 combat bots 16603 | -6/Garrison | Triggered checkpoint 16651 | -6/Garrison | Triggered checkpoint 16858 | -6/Garrison | Expanded RIF knowledge: Hotswap 16889 | -6/Garrison | Triggered checkpoint 16945 | -6/Garrison | Identified exit to Factory 16945 | -6/Garrison | Discovered exit to Factory (range 10) 17079 | -6/Garrison | Triggered checkpoint 17157 | -6/Garrison | Discovered exit to Factory (range 10) 17201 | -6/Garrison | Triggered checkpoint 17531 | -6/Garrison | Triggered checkpoint 17618 | -6/Garrison | Build established: Botlord-Mutant 17643 | -6/Garrison | Discovered exit to Factory (range 15) 17779 | -6/Garrison | Triggered checkpoint 18089 | -6/Garrison | Build established: Bothacker-Mutant 18163 | -6/Garrison | Entered Factory 18163 | -6/Factory | Accompanied by 3 allies 18338 | -6/Factory | Identified exit to Garrison 18338 | -6/Factory | Entered Garrison 18338 | -6/Garrison | Accompanied by 2 allies 18434 | -6/Garrison | Triggered checkpoint 18568 | -6/Garrison | Spotted B-75 Beast 18576 | -6/Garrison | Triggered checkpoint 18604 | -6/Garrison | Destroyed B-75 Beast 18658 | -6/Garrison | Triggered checkpoint 18686 | -6/Garrison | Learned Factory security intel 18789 | -6/Garrison | Discovered exit to Factory (range 10) 18852 | -6/Garrison | Triggered checkpoint 18898 | -6/Garrison | Expanded RIF knowledge: Alert ID Control 18944 | -6/Garrison | Triggered checkpoint 19244 | -6/Garrison | Triggered checkpoint 19280 | -6/Garrison | Triggered checkpoint 19362 | -6/Garrison | Triggered checkpoint 19457 | -6/Garrison | Discovered exit to Factory (range 12) 19797 | -6/Garrison | Discovered exit to Factory (range 14) 19862 | -6/Garrison | Discovered exit to Factory (range 14) 19862 | -6/Garrison | Discovered exit to Factory (range 31) 19862 | -6/Garrison | Discovered exit to Factory (range 74) 19926 | -6/Garrison | Triggered checkpoint 20213 | -6/Garrison | Entered Factory 20213 | -5/Factory | Evolved 2 slots: Utility x1, Weapon x1 20378 | -5/Factory | Repaired Hcp. Storage Unit 20474 | -5/Factory | Repaired Imp. Medium Treads 20882 | -5/Factory | Build established: Botlord-Gunner 21238 | -5/Factory | Identified exit to Garrison 21238 | -5/Factory | Entered Garrison 21315 | -5/Garrison | Heavy support dispatched to Factory 21327 | -5/Garrison | H-XX Assembler disabled 21444 | -5/Garrison | Triggered checkpoint 21548 | -5/Garrison | Spotted B-75 Beast 21608 | -5/Garrison | Destroyed B-75 Beast 21746 | -5/Garrison | Triggered checkpoint 21840 | -5/Garrison | Identified exit to Factory 21840 | -5/Garrison | Discovered exit to Factory (range 15) 21908 | -5/Garrison | Lost 3 parts (1n2u) 22100 | -5/Garrison | Triggered checkpoint 22204 | -5/Garrison | Expanded RIF knowledge: Crosswire 22304 | -5/Garrison | Triggered checkpoint 22455 | -5/Garrison | Lost 4 parts (1p1n1u1w) 22466 | -5/Garrison | Lost 3 allies 22516 | -5/Garrison | Discovered exit to Factory (range 14) 22715 | -5/Garrison | Build established: Hacker-Mutant 22727 | -5/Garrison | Expanded RIF knowledge: Command Fork 22930 | -5/Garrison | Triggered checkpoint 23154 | -5/Garrison | Discovered exit to Factory (range 10) 23190 | -5/Garrison | Triggered checkpoint 23232 | -5/Garrison | Triggered checkpoint 23265 | -5/Garrison | Garrison Relay disabled 23367 | -5/Garrison | Entered Factory 23367 | -4/Factory | Evolved 2 slots: Utility x2 23471 | -4/Factory | Identified exit to Garrison 23525 | -4/Factory | Entered Garrison 23650 | -4/Garrison | Expanded RIF knowledge: Command Fork 23681 | -4/Garrison | Triggered checkpoint 23824 | -4/Garrison | Spotted B-86 Titan 23828 | -4/Garrison | Triggered checkpoint 23894 | -4/Garrison | Destroyed B-86 Titan 23993 | -4/Garrison | Triggered checkpoint 24008 | -4/Garrison | Found embedded Infiltrators 24059 | -4/Garrison | Triggered checkpoint 24094 | -4/Garrison | Build established: Botlord-Gunner 24166 | -4/Garrison | Identified exit to Factory 24166 | -4/Garrison | Discovered exit to Factory (range 12) 24314 | -4/Garrison | Spotted B-86 Titan 24323 | -4/Garrison | Found Adv. Force Booster 24423 | -4/Garrison | Triggered checkpoint 24471 | -4/Garrison | Heavy support dispatched to Factory 24480 | -4/Garrison | Discovered exit to Factory (range 10) 24531 | -4/Garrison | Heavy support dispatched to Factory 24760 | -4/Garrison | Discovered exit to Factory (range 13) 24801 | -4/Garrison | Triggered checkpoint 24835 | -4/Garrison | Triggered checkpoint 24859 | -4/Garrison | Heavy support dispatched to Factory 24912 | -4/Garrison | Heavy support dispatched to Factory 25021 | -4/Garrison | Triggered checkpoint 25052 | -4/Garrison | Garrison Relay disabled 25179 | -4/Garrison | Entered Factory 25179 | -4/Factory | Accompanied by 11 allies 25697 | -4/Factory | Lost 5 allies 25724 | -4/Factory | Spotted B-86 Titan 25729 | -4/Factory | Allies destroyed B-86 Titan 25858 | -4/Factory | Identified exit to Garrison 25858 | -4/Factory | Entered Garrison 25858 | -4/Garrison | Accompanied by 6 allies 25952 | -4/Garrison | Triggered checkpoint 25980 | -4/Garrison | Garrison Relay disabled 26065 | -4/Garrison | Spotted B-86 Titan 26086 | -4/Garrison | Allies destroyed B-86 Titan 26105 | -4/Garrison | Triggered checkpoint 26116 | -4/Garrison | Triggered checkpoint 26154 | -4/Garrison | Lost 10 allies 26230 | -4/Garrison | Identified exit to Research 26230 | -4/Garrison | Discovered exit to Research (range 10) 26270 | -4/Garrison | Triggered checkpoint 26270 | -4/Garrison | Expanded RIF knowledge: Structural Interface 26302 | -4/Garrison | Found embedded Infiltrators 26449 | -4/Garrison | Garrison Relay disabled 26573 | -4/Garrison | Found Unknown Hackware 26595 | -4/Garrison | Identified Relay Coupler [Proto] 26611 | -4/Garrison | Found Relay Coupler [Proto] 26613 | -4/Garrison | Found Relay Coupler [Proto] 26751 | -4/Garrison | Discovered exit to Research (range 12) 26954 | -4/Garrison | Discovered exit to Research (range 38) 26954 | -4/Garrison | Discovered exit to Research (range 16) 26954 | -4/Garrison | Discovered exit to Research (range 47) 26960 | -4/Garrison | Triggered checkpoint 27070 | -4/Garrison | Garrison Relay disabled 27324 | -4/Garrison | Triggered checkpoint 27370 | -4/Garrison | Spotted B-90 Cyclops 27370 | -4/Garrison | Spotted B-75 Beast 27378 | -4/Garrison | Rewired B-86 Titan 27380 | -4/Garrison | Rewired B-75 Beast 27385 | -4/Garrison | Assimilated Beast 7b with formatsys_high 27385 | -4/Garrison | Assimilated Cyclops 7a with formatsys_high 27639 | -4/Garrison | Entered Research 27639 | -3/Research | Accompanied by 13 allies 27639 | -3/Research | Evolved 2 slots: Power x1, Utility x1 27726 | -3/Research | Identified exit to Garrison 27791 | -3/Research | Entered Garrison 27791 | -3/Garrison | Accompanied by 13 allies 27837 | -3/Garrison | Triggered checkpoint 27887 | -3/Garrison | Lost 4 allies 27915 | -3/Garrison | Expanded RIF knowledge: Autooverride 28125 | -3/Garrison | Spotted B-86 Titan 28131 | -3/Garrison | Triggered checkpoint 28132 | -3/Garrison | Triggered checkpoint 28153 | -3/Garrison | Allies destroyed B-86 Titan 28176 | -3/Garrison | Lost 4 allies 28177 | -3/Garrison | Triggered checkpoint 28295 | -3/Garrison | Garrison Relay disabled 28325 | -3/Garrison | Triggered checkpoint 28354 | -3/Garrison | Garrison Relay disabled 28384 | -3/Garrison | Identified exit to Research 28384 | -3/Garrison | Discovered exit to Research (range 2) 28404 | -3/Garrison | Found embedded Infiltrators 28427 | -3/Garrison | Spotted B-75 Beast 28563 | -3/Garrison | Discovered exit to Research (range 8) 28634 | -3/Garrison | Garrison Relay disabled 28661 | -3/Garrison | Triggered checkpoint 28879 | -3/Garrison | Triggered checkpoint 28884 | -3/Garrison | Discovered exit to Research (range 14) 28908 | -3/Garrison | Rescued a captive Derelict 28917 | -3/Garrison | Rescued a captive Derelict 28995 | -3/Garrison | Triggered checkpoint 28995 | -3/Garrison | Assimilated ARC 8a with formatsys_deep 29010 | -3/Garrison | Garrison Relay disabled 30033 | -3/Garrison | Entered Research 30033 | -2/Research | Accompanied by 20 allies 30033 | -2/Research | Evolved 2 slots: Utility x2 30092 | -2/Research | Spotted B-90 Cyclops 30111 | -2/Research | Allies destroyed B-90 Cyclops 30117 | -2/Research | Garrison activated, responded to threat 30156 | -2/Research | Lost 3 allies 30169 | -2/Research | Master 9a assimilated hostile G-73 Enforcer 30172 | -2/Research | Identified exit to Garrison 30222 | -2/Research | Entered Garrison 30222 | -2/Garrison | Accompanied by 23 allies 30254 | -2/Garrison | Spotted B-90 Cyclops 30285 | -2/Garrison | Allies destroyed B-90 Cyclops 30314 | -2/Garrison | Lost 7 allies 30340 | -2/Garrison | Triggered checkpoint 30366 | -2/Garrison | Garrison Relay disabled 30414 | -2/Garrison | Garrison Relay disabled 30460 | -2/Garrison | Spotted B-90 Cyclops 30500 | -2/Garrison | Triggered checkpoint 30544 | -2/Garrison | Triggered checkpoint 30593 | -2/Garrison | Lost 21 allies 30612 | -2/Garrison | Triggered checkpoint 30639 | -2/Garrison | Identified exit to Research 30639 | -2/Garrison | Discovered exit to Research (range 76) 30639 | -2/Garrison | Discovered exit to Research (range 51) 30639 | -2/Garrison | Discovered exit to Research (range 18) 30653 | -2/Garrison | Garrison Relay disabled 30744 | -2/Garrison | Triggered checkpoint 30834 | -2/Garrison | Triggered checkpoint 30851 | -2/Garrison | Expanded RIF knowledge: Zone Cloak 30889 | -2/Garrison | Entered Research 30889 | -2/Research | Accompanied by 8 allies 30903 | -2/Research | Identified exit to Access 30903 | -2/Research | Discovered exit to Access (range 21) 30932 | -2/Research | Identified exit to Quarantine 30932 | -2/Research | Discovered exit to Quarantine (range 20) 30965 | -2/Research | Entered Access 30965 | -1/Access | Accompanied by 8 allies 30965 | -1/Access | Evolved 2 slots: Utility x2 31349 | -1/Access | Energy Cycler disabled 31411 | -1/Access | Spotted B-99 Colossus 31451 | -1/Access | Allies destroyed B-99 Colossus 31484 | -1/Access | Lost 7 allies 31591 | -1/Access | Spotted B-99 Colossus 31616 | -1/Access | Spotted B-99 Colossus 31678 | -1/Access | Lost 8 parts (1p4u3w) 31768 | -1/Access | Lost 3 allies 31838 | -1/Access | Identified exit to Surface 31838 | -1/Access | Discovered exit to Surface (range 20) 31890 | -1/Access | Build established: Botlord-Mutant 32007 | *** | Escaped! Last Messages --------------- 31983_ K-01 Serf cleans the Terminal. 31986_ >> Watcher Feeds: Feed link from W-44 Eye lost. 31990_ >> Watcher Feeds: Established visual feed link with W-44 Eye. 31993_ K-01 Serf collects debris. 31994_ >> Watcher Feeds: Feed link from W-44 Eye lost. 31995_ >> Watcher Feeds: Established visual feed link with W-44 Eye. 31995_ Connecting with Terminal... 31995_ ALERT: Suspicious activity at Terminal A001. Dispatching Investigation squad. 31996_ K-01 Serf collects debris. 31999_ The Access Shell folds into the floor. 32000_